bitfinex/quotes_BTCUSD_20240727
["timestamp","ask_amount","ask_price","bid_price","bid_amount"]
[1722106910856,0.15186337,68404.0,68390.0,0.146218]
[1722106911029,0.15186337,68404.0,68391.0,0.146216]
[1722106911269,0.002,68396.0,68389.0,0.2169]
[1722106911481,0.15186337,68395.0,68389.0,0.2169]
[1722106911680,0.15186337,68394.0,68389.0,0.2169]
[1722106911885,0.15186337,68393.0,68390.0,0.146219]
[1722106912054,0.15186337,68392.0,68389.0,0.2169]
[1722106912300,0.002,68403.0,68392.0,0.146214]
[1722106912506,0.15188933,68402.0,68399.0,0.1462]
[1722106912711,0.45077872,68422.0,68390.0,0.1405]
[1722106912712,0.15188933,68401.0,68390.0,0.1405]
[1722106912940,0.292296,68424.0,68390.0,0.1405]
[1722106912941,0.002,68413.0,68405.0,0.146186]
[1722106913124,0.002,68413.0,68400.0,0.2169]
[1722106913125,0.15187055,68412.0,68400.0,0.2169]
[1722106913333,0.15187055,68412.0,68405.0,0.292376]
[1722106913539,0.15187055,68412.0,68401.0,0.0015542]
[1722106913741,0.15187055,68412.0,68405.0,0.292373]
[1722106913946,0.15187055,68412.0,68401.0,0.0015542]
[1722106914195,0.15187055,68411.0,68405.0,0.146186]
[1722106914393,0.15187055,68410.0,68409.0,0.146179]
[1722106914609,0.15187055,68410.0,68400.0,0.2169]
[1722106914610,0.146178,68410.0,68401.0,0.0015542]
[1722106914822,1.09849079,68402.0,68401.0,0.0015542]
[1722106915020,1.09849079,68402.0,68370.0,0.45170272]
[1722106915021,0.002,68371.0,68370.0,0.45170272]
[1722106915262,0.30013055,68371.0,68370.0,0.45170272]
[1722106915464,0.15187055,68371.0,68370.0,0.000924]
[1722106915665,0.30013055,68371.0,68370.0,0.000924]
[1722106915894,0.59265155,68371.0,68370.0,0.000924]
[1722106916097,1.16365177,68371.0,68370.0,0.000924]
[1722106916300,1.40565744,68371.0,68370.0,0.000924]
[1722106916532,0.43153092,68371.0,68370.0,0.000924]
[1722106916748,0.29813055,68371.0,68370.0,0.000924]
[1722106916960,0.15387055,68371.0,68370.0,0.000924]
[1722106917143,0.30013055,68371.0,68370.0,0.000924]
[1722106917339,0.15387055,68371.0,68370.0,0.000924]
[1722106917543,0.30013055,68371.0,68370.0,0.000924]
[1722106917912,0.64411295,68371.0,68370.0,0.000924]
[1722106918113,1.11312952,68371.0,68370.0,0.000924]
[1722106918317,0.82060852,68371.0,68370.0,0.000924]
[1722106918527,0.38182752,68371.0,68370.0,0.000924]
[1722106918732,0.59265155,68371.0,68370.0,0.000924]
[1722106918934,0.15187055,68371.0,68370.0,0.000924]
[1722106919544,0.59265155,68371.0,68370.0,0.000924]
[1722106919758,0.8205982,68371.0,68370.0,0.000924]
[1722106919984,1.163706,68371.0,68370.0,0.000924]
[1722106920211,0.3818172,68371.0,68370.0,0.000924]
[1722106920464,0.3798172,68371.0,68370.0,0.000924]
[1722106920665,0.15187055,68371.0,68370.0,0.0024782]
[1722106921094,0.15187055,68371.0,68370.0,0.1429782]
[1722106921095,0.15194241,68371.0,68370.0,0.1429782]
[1722106921300,0.14626,68371.0,68370.0,0.1429782]
[1722106921505,0.59072341,68371.0,68370.0,0.141424]
[1722106921714,1.11317883,68371.0,68370.0,0.065924]
[1722106921924,0.38187683,68371.0,68370.0,0.000924]
[1722106922128,1.02984286,68371.0,68370.0,0.000924]
[1722106922332,1.85826453,68371.0,68370.0,0.000924]
[1722106922550,1.85826453,68371.0,68369.0,42.05794165]
[1722106922551,0.733312,68370.0,68369.0,42.05701765]
[1722106922759,1.25778728,68370.0,68369.0,42.05701765]
[1722106923584,1.55031228,68370.0,68369.0,42.05701765]
[1722106923789,1.25778728,68370.0,68369.0,42.05701765]
[1722106924610,1.26017507,68370.0,68369.0,42.05701765]
[1722106924812,1.55270007,68370.0,68369.0,42.05701765]
[1722106925259,1.78091573,68370.0,68369.0,42.05701765]
[1722106925466,2.07344073,68370.0,68369.0,42.05701765]
[1722106925651,2.17344073,68370.0,68369.0,42.05701765]
[1722106925973,2.32841498,68370.0,68369.0,42.05701765]
[1722106926148,3.26496573,68370.0,68369.0,41.84415265]
[1722106926358,3.76668873,68370.0,68369.0,39.84295265]
[1722106926626,3.93697145,68370.0,68369.0,36.66612676]
[1722106926825,4.95089016,68370.0,68369.0,36.66612676]
[1722106927057,3.76334544,68370.0,68369.0,36.66612676]
[1722106927276,3.03889083,68370.0,68369.0,36.51986176]
[1722106927461,2.98601486,68370.0,68369.0,36.51986176]
[1722106927676,3.73250546,68370.0,68369.0,36.51986176]
[1722106927908,2.47897405,68370.0,68369.0,36.51986176]
[1722106928085,1.94743017,68370.0,68369.0,36.51986176]
[1722106928288,1.94884022,68370.0,68369.0,36.51986176]
[1722106928522,1.84884022,68370.0,68369.0,36.51986176]
[1722106928741,1.62080584,68370.0,68369.0,36.51986176]
[1722106929113,1.32828084,68370.0,68369.0,36.51986176]
[1722106929779,0.24970257,68370.0,68369.0,36.51986176]
[1722106930013,0.24970257,68370.0,68369.0,36.60236176]
[1722106930014,0.24518219,68370.0,68369.0,36.60236176]
[1722106930217,0.15402292,68370.0,68369.0,36.60236176]
[1722106930416,0.15202292,68370.0,68369.0,36.67723318]
[1722106930650,0.15197273,68370.0,68369.0,36.67723318]
[1722106930856,0.002,68374.0,68369.0,36.67723318]
[1722106931083,0.002,68371.0,68369.0,36.67723318]
[1722106931297,0.002,68371.0,68370.0,0.0015542]
[1722106931497,0.15197097,68371.0,68370.0,0.0015542]
[1722106931712,0.002,68371.0,68370.0,0.0015542]
[1722106931952,0.002,68385.0,68370.0,0.0015542]
[1722106932221,0.15194314,68384.0,68370.0,0.0015542]
[1722106932492,0.002,68385.0,68370.0,0.0015542]
[1722106932789,0.45077872,68410.0,68370.0,0.0015542]
[1722106932790,0.45077872,68410.0,68389.0,0.146221]
[1722106933081,0.45077872,68410.0,68395.0,0.0653]
[1722106933082,0.15190724,68409.0,68395.0,0.0653]
[1722106933290,0.002,68416.0,68399.0,0.0825]
[1722106933506,0.002,68414.0,68403.0,0.292381]
[1722106933734,0.002,68414.0,68399.0,0.0825]
[1722106933735,0.002,68418.0,68404.0,0.0374881]
[1722106933937,0.002,68418.0,68400.0,0.0015542]
[1722106934145,0.002,68420.0,68404.0,0.292377]
[1722106934356,0.292275,68429.0,68402.0,0.0015542]
[1722106934357,0.002,68414.0,68402.0,0.0015542]
[1722106934555,0.002,68404.0,68402.0,0.0015542]
[1722106934728,0.058596,68429.0,68402.0,0.0015542]
[1722106934729,0.002,68403.0,68402.0,0.0015542]
[1722106935166,0.058596,68429.0,68402.0,0.0015542]
[1722106935167,0.292296,68424.0,68402.0,0.0015542]
[1722106935382,0.15188921,68423.0,68402.0,0.0425492]
[1722106935582,0.15188921,68422.0,68402.0,0.0015542]
[1722106935810,0.15188921,68421.0,68402.0,0.0015542]
[1722106936017,0.058596,68429.0,68403.0,0.06586582]
[1722106936018,0.15188921,68420.0,68403.0,0.06586582]
[1722106936214,0.292256,68434.0,68404.0,0.023]
[1722106936448,0.45077872,68428.0,68404.0,0.023]
[1722106936686,0.45077872,68428.0,68403.0,0.06742002]
[1722106936687,0.15184817,68427.0,68405.0,0.04667084]
[1722106936905,0.146161,68418.0,68402.0,0.0015542]
[1722106937130,0.15184817,68417.0,68402.0,0.0015542]
[1722106937585,0.292283,68427.0,68402.0,0.0015542]
[1722106937586,0.15184817,68416.0,68402.0,0.0015542]
[1722106937803,0.058592,68434.0,68402.0,0.0015542]
[1722106937804,0.15184817,68415.0,68414.0,0.146168]
[1722106938046,0.15184817,68415.0,68403.0,0.04304]
[1722106938265,0.15184817,68414.0,68404.0,0.0015542]
[1722106938500,0.058592,68434.0,68402.0,0.0245542]
[1722106938722,0.15185169,68433.0,68414.0,0.2169]
[1722106938931,0.15185169,68432.0,68416.0,0.0653]
[1722106939142,0.15185169,68431.0,68416.0,0.0653]
[1722106939367,0.15185169,68430.0,68417.0,0.03647]
[1722106939571,0.15185169,68429.0,68417.0,0.07951]
[1722106939779,0.02293353,68439.0,68418.0,0.0736544]
[1722106939993,0.15183143,68438.0,68418.0,0.11502732]
[1722106940240,0.15183143,68438.0,68416.0,0.0653]
[1722106940241,0.07512979,68433.0,68416.0,0.0653]
[1722106940472,0.292302,68423.0,68416.0,0.0653]
[1722106940724,0.07512979,68433.0,68416.0,0.0653]
[1722106940725,0.15184068,68422.0,68416.0,0.0653]
[1722106940957,0.15184068,68421.0,68417.0,0.01478]
[1722106941220,0.15184068,68421.0,68416.0,0.0653]
[1722106941221,0.15184068,68420.0,68416.0,0.0653]
[1722106941455,0.292263,68432.0,68416.0,0.0653]
[1722106941688,0.02293353,68439.0,68416.0,0.0653]
[1722106941689,0.15185092,68431.0,68416.0,0.0653]
[1722106941990,0.15185092,68430.0,68416.0,0.0653]
[1722106942235,0.730812,68417.0,68416.0,0.0653]
[1722106942527,0.730812,68417.0,68403.0,0.0653]
[1722106942528,0.73095,68404.0,68403.0,0.0653]
[1722106942755,0.88280092,68404.0,68403.0,0.0653]
[1722106943489,0.88280092,68404.0,68383.0,0.0101691]
[1722106943490,0.15185092,68404.0,68383.0,0.0101691]
[1722106943720,0.438699,68384.0,68383.0,0.0101691]
[1722106944001,0.88301592,68384.0,68383.0,0.0101691]
[1722106944538,1.22857332,68384.0,68383.0,0.0101691]
[1722106945069,1.45656651,68384.0,68383.0,0.0101691]
[1722106945307,0.29808392,68384.0,68383.0,0.0101691]
[1722106945552,1.17548192,68384.0,68383.0,0.0101691]
[1722106945815,0.15185092,68384.0,68383.0,0.0101691]
[1722106946101,0.15185092,68403.0,68383.0,0.0101691]
[1722106946412,0.15193152,68402.0,68385.0,0.14623]
[1722106946601,0.15193152,68402.0,68384.0,0.0015542]
[1722106946602,0.15193152,68402.0,68387.0,0.2169]
[1722106946838,0.45077872,68399.0,68388.0,0.0245542]
[1722106947078,0.0008,68431.0,68388.0,0.0015542]
[1722106947079,0.146195,68402.0,68388.0,0.0015542]
[1722106947299,0.15189596,68401.0,68388.0,0.0015542]
[1722106947529,0.15189596,68400.0,68387.0,0.0015542]
[1722106947814,0.15189596,68400.0,68386.0,0.1478]
[1722106947815,0.15189596,68409.0,68386.0,0.1478]
[1722106948088,0.146226,68387.0,68386.0,0.147504]
[1722106948356,0.292375,68406.0,68386.0,0.147504]
[1722106948599,0.15190891,68405.0,68387.0,0.2184542]
[1722106948855,0.146165,68416.0,68398.0,0.146201]
[1722106949088,0.146165,68416.0,68388.0,0.023]
[1722106949089,0.15188135,68415.0,68399.0,0.0015542]
[1722106949357,0.15188135,68414.0,68398.0,0.0653]
[1722106949598,0.292307,68421.0,68400.0,0.146197]
[1722106949888,0.300466,68440.0,68400.0,0.146197]
[1722106949889,0.15187125,68420.0,68407.0,0.146182]
[1722106950120,0.45077872,68427.0,68401.0,0.0015542]
[1722106950121,0.29231,68421.0,68401.0,0.0015542]
[1722106950363,0.15186232,68420.0,68405.0,0.146187]
[1722106950595,0.146165,68416.0,68402.0,0.0015542]
[1722106950832,0.146162,68418.0,68403.0,0.14619]
[1722106951069,0.146158,68419.0,68404.0,0.0840542]
[1722106951319,0.00824,68440.0,68404.0,0.0840542]
[1722106951320,0.292269,68430.0,68410.0,0.292354]
[1722106951557,0.15185216,68429.0,68406.0,0.2196]
[1722106951785,0.15185216,68428.0,68407.0,0.23108692]
[1722106952021,0.14615,68423.0,68407.0,0.08490392]
[1722106952311,0.00824,68440.0,68413.0,0.2169]
[1722106952534,0.15184466,68438.0,68417.0,0.146161]
[1722106952766,0.29224,68437.0,68417.0,0.0363061]
[1722106953000,0.146133,68431.0,68417.0,0.0363061]
[1722106953264,0.00824,68440.0,68417.0,0.0363061]
[1722106953265,0.146136,68430.0,68417.0,0.0363061]
[1722106953707,0.146127,68434.0,68418.0,0.18690861]
[1722106953709,0.00824,68440.0,68427.0,0.2169]
[1722106953986,0.00824,68440.0,68428.0,0.0015542]
[1722106954203,0.00824,68440.0,68438.0,0.0632]
[1722106954640,0.00824,68440.0,68439.0,0.473891]
[1722106954869,0.45077872,68471.0,68437.0,0.0632]
[1722106954870,0.02292205,68465.0,68437.0,0.0632]
[1722106955081,0.45077872,68452.0,68438.0,0.0015542]
[1722106955335,0.438346,68439.0,68438.0,0.0015542]
[1722106955585,0.730577,68439.0,68438.0,0.0015542]
[1722106955789,0.438346,68439.0,68438.0,0.0015542]
[1722106955996,0.438346,68439.0,68429.0,0.0806]
[1722106955997,0.438397,68431.0,68430.0,0.0015542]
[1722106956250,1.022927,68431.0,68430.0,0.0015542]
[1722106956484,1.1747805,68431.0,68430.0,0.0015542]
[1722106956727,0.1518535,68431.0,68417.0,0.1438]
[1722106956931,0.07512979,68453.0,68418.0,0.01550108]
[1722106957132,0.65720201,68452.0,68418.0,0.01550108]
[1722106957337,0.65720201,68452.0,68420.0,0.292311]
[1722106957338,0.20642329,68451.0,68420.0,0.292311]
[1722106957567,0.15183476,68450.0,68421.0,0.09137761]
[1722106957775,0.146107,68443.0,68428.0,0.146137]
[1722106957984,0.15183476,68442.0,68430.0,0.146133]
[1722106958189,0.59206,68480.0,68431.0,0.0015542]
[1722106958190,0.355092,68472.0,68431.0,0.0015542]
[1722106958392,0.2062671,68464.0,68432.0,0.292259]
[1722106958634,0.355092,68472.0,68434.0,0.0806]
[1722106958635,0.292155,68457.0,68434.0,0.0806]
[1722106958839,0.355092,68472.0,68440.0,0.146112]
[1722106958840,0.146082,68455.0,68440.0,0.146112]
[1722106959041,0.146082,68455.0,68435.0,0.5860482]
[1722106959042,0.15180255,68454.0,68435.0,0.0015542]
[1722106959250,0.292152,68458.0,68435.0,0.0245542]
[1722106959251,0.15180255,68453.0,68435.0,0.0245542]
[1722106959452,0.15180255,68452.0,68435.0,0.0015542]
[1722106959655,0.15180255,68451.0,68435.0,0.0015542]
[1722106959898,0.07512979,68448.0,68435.0,0.0015542]
[1722106960080,0.15180255,68447.0,68435.0,0.0015542]
[1722106960282,0.292215,68443.0,68435.0,0.0015542]
[1722106960496,0.146117,68439.0,68434.0,0.1438]
[1722106960697,0.15180255,68438.0,68434.0,0.1438]
[1722106961107,0.15180255,68438.0,68297.0,2.195]
[1722106961108,0.15180255,68438.0,68422.0,0.1438]
[1722106961318,0.146138,68429.0,68422.0,0.1438]
[1722106961453,0.15180255,68428.0,68422.0,0.1438]
[1722106961873,0.15180255,68427.0,68422.0,0.1438]
[1722106962087,0.146107,68443.0,68427.0,0.14614]
[1722106962291,0.292222,68441.0,68422.0,0.1727959]
[1722106962513,0.44405101,68440.0,68422.0,0.1438]
[1722106962718,0.146124,68435.0,68422.0,0.1438]
[1722106962927,0.15182401,68434.0,68429.0,0.146134]
[1722106963123,0.1461,68446.0,68431.0,0.146132]
[1722106963324,0.15181292,68445.0,68433.0,0.146127]
[1722106963550,0.292171,68454.0,68432.0,0.0015542]
[1722106963551,0.15181292,68444.0,68432.0,0.0015542]
[1722106963774,0.15181292,68443.0,68433.0,0.292256]
[1722106963993,0.15181292,68442.0,68434.0,0.0245542]
[1722106964138,0.29216,68456.0,68434.0,0.0245542]
[1722106964139,0.14681292,68441.0,68434.0,0.0245542]
[1722106964506,0.07512979,68451.0,68436.0,0.0015542]
[1722106964733,0.05502995,68450.0,68436.0,0.0015542]
[1722106964986,0.292193,68448.0,68436.0,0.0647542]
[1722106965206,0.07512979,68463.0,68436.0,0.0647542]
[1722106965434,0.23731027,68462.0,68437.0,0.03570132]
[1722106965659,0.05595112,68461.0,68439.0,0.146114]
[1722106965884,0.07512979,68460.0,68436.0,0.20932]
[1722106966096,0.07512979,68460.0,68436.0,0.10076741]
[1722106966233,0.02292205,68465.0,68436.0,0.10076741]
[1722106966234,0.146083,68454.0,68439.0,0.146114]
[1722106966441,0.02292205,68465.0,68437.0,0.01163094]
[1722106966656,0.146077,68457.0,68441.0,0.1476642]
[1722106966859,0.07512979,68463.0,68441.0,0.1476642]
[1722106966860,0.07512979,68455.0,68441.0,0.0015542]
[1722106967077,0.05505864,68454.0,68441.0,0.0015542]
[1722106967256,0.146099,68447.0,68437.0,0.0015542]
[1722106967480,0.292189,68449.0,68437.0,0.0015542]
[1722106967675,0.1,68483.0,68437.0,0.0015542]
[1722106967887,0.146069,68461.0,68446.0,0.0015542]
[1722106968102,0.02292205,68465.0,68446.0,0.01631972]
[1722106968328,0.02292205,68465.0,68449.0,0.0806]
[1722106968329,0.31504305,68465.0,68449.0,0.0806]
[1722106968549,0.16898305,68465.0,68450.0,0.00821542]
[1722106968784,0.02292205,68465.0,68451.0,0.0015542]
[1722106969222,0.02292205,68465.0,68451.0,0.0621]
[1722106969433,0.053556,68477.0,68452.0,0.0831]
[1722106969657,0.00824,68478.0,68463.0,0.146063]
[1722106969866,0.00824,68478.0,68453.0,0.03010542]
[1722106969867,0.07512979,68477.0,68453.0,0.03010542]
[1722106970080,0.33767889,68476.0,68461.0,0.1476212]
[1722106970297,0.00824,68478.0,68461.0,0.1476212]
[1722106970298,0.00824,68478.0,68461.0,0.0015542]
[1722106970507,0.00824,68478.0,68467.0,0.1452]
[1722106970717,0.00824,68478.0,68468.0,0.0015542]
[1722106970928,0.00824,68478.0,68472.0,0.146043]
[1722106971163,0.00824,68478.0,68468.0,0.03083572]
[1722106971437,0.00824,68478.0,68470.0,0.0015542]
[1722106971672,0.00824,68478.0,68471.0,0.146046]
[1722106971896,0.00824,68478.0,68472.0,0.1475982]
[1722106972108,0.00824,68478.0,68474.0,0.0015542]
[1722106972315,0.00824,68482.0,68481.0,0.146025]
[1722106972508,0.00824,68482.0,68478.0,0.1452]
[1722106972761,0.00824,68482.0,68481.0,0.146025]
[1722106973132,0.00824,68482.0,68478.0,0.1452]
[1722106974438,0.00824,68482.0,68481.0,0.146025]
[1722106974615,0.00824,68482.0,68481.0,0.461076]
[1722106974853,0.00824,68482.0,68481.0,0.753127]
[1722106975045,0.00824,68482.0,68481.0,0.5663387]
[1722106975837,0.00824,68482.0,68481.0,0.2742877]
[1722106976034,0.00824,68482.0,68481.0,0.7206387]
[1722106976233,0.00824,68482.0,68481.0,1.0126897]
[1722106976659,0.00824,68482.0,68481.0,1.16294927]
[1722106976866,0.00824,68493.0,68492.0,0.146002]
[1722106977086,0.00824,68493.0,68492.0,0.0438026]
[1722106977285,0.00824,68493.0,68488.0,0.29202]
[1722106977485,0.00824,68493.0,68483.0,0.1543]
[1722106977770,0.00824,68493.0,68492.0,0.146002]
[1722106978098,0.00824,68493.0,68492.0,0.291202]
[1722106978345,0.00824,68493.0,68492.0,0.89821]
[1722106978661,0.00824,68493.0,68492.0,1.0723691]
[1722106978923,0.00824,68493.0,68492.0,1.37692867]
[1722106979140,0.00824,68493.0,68492.0,0.18587838]
[1722106979338,0.00824,68493.0,68485.0,0.292032]
[1722106979562,0.00824,68493.0,68482.0,0.0015542]
[1722106979563,0.146021,68483.0,68482.0,0.0015542]
[1722106979765,0.146021,68483.0,68466.0,0.03812367]
[1722106979766,0.730212,68473.0,68472.0,0.97863482]
[1722106979966,1.34674138,68473.0,68472.0,0.97863482]
[1722106980286,1.63882638,68473.0,68472.0,0.97863482]
[1722106980548,1.63882638,68473.0,68472.0,0.94942582]
[1722106980794,2.02904196,68473.0,68472.0,0.83258982]
[1722106980921,1.73334895,68473.0,68472.0,0.83258982]
[1722106981125,1.74920486,68473.0,68472.0,0.83258982]
[1722106981564,1.73334895,68473.0,68472.0,0.83258982]
[1722106981787,0.97404916,68473.0,68472.0,0.83258982]
[1722106981995,0.68196416,68473.0,68472.0,0.83258982]
[1722106982198,0.20071019,68473.0,68472.0,0.83258982]
[1722106982394,0.00324,68493.0,68472.0,0.83258982]
[1722106982612,0.05368554,68492.0,68472.0,0.83258982]
[1722106982826,0.18791318,68491.0,68472.0,0.83258982]
[1722106982996,0.146004,68492.0,68476.0,0.146036]
[1722106983199,0.00324,68493.0,68477.0,0.09786258]
[1722106983406,0.00324,68493.0,68479.0,0.0621]
[1722106983735,0.00823,68494.0,68479.0,0.0621]
[1722106983736,0.00647,68494.0,68485.0,0.292032]
[1722106983996,0.00647,68494.0,68490.0,0.0831]
[1722106984195,0.15168596,68493.0,68491.0,0.0375129]
[1722106984350,0.00823,68508.0,68491.0,0.0375129]
[1722106984552,0.00823,68508.0,68490.0,0.0831]
[1722106984954,0.00324,68501.0,68491.0,0.0621]
[1722106985159,0.00324,68501.0,68495.0,0.145995]
[1722106985496,0.00324,68501.0,68491.0,0.0621]
[1722106985697,0.07512979,68500.0,68490.0,0.0831]
[1722106985891,0.291975,68499.0,68490.0,0.0831]
[1722106986062,0.145985,68500.0,68490.0,0.09141]
[1722106986417,0.00647,68508.0,68490.0,0.09141]
[1722106986639,0.145982,68502.0,68490.0,0.09141]
[1722106986863,0.00647,68508.0,68490.0,0.09141]
[1722106987096,0.00647,68508.0,68491.0,0.023742]
[1722106987544,0.07512979,68497.0,68482.0,0.0621]
[1722106987765,0.146021,68483.0,68482.0,0.0621]
[1722106987983,0.291991,68496.0,68476.0,0.0831]
[1722106988204,0.18934557,68495.0,68476.0,0.0831]
[1722106988440,0.07512979,68493.0,68476.0,0.0831]
[1722106988664,0.146042,68473.0,68463.0,0.1452]
[1722106988887,0.0015542,68486.0,68463.0,0.1452]
[1722106989119,0.730212,68473.0,68463.0,0.1452]
[1722106989340,1.017297,68473.0,68463.0,0.1452]
[1722106989589,0.91879848,68473.0,68450.0,0.45077872]
[1722106989796,1.21088348,68473.0,68449.0,0.0609]
[1722106989995,0.91879848,68473.0,68449.0,0.0609]
[1722106990203,1.21088348,68473.0,68449.0,0.0609]
[1722106990403,0.62671348,68473.0,68449.0,0.0609]
[1722106990681,0.62171348,68473.0,68449.0,0.0609]
[1722106991095,0.19358648,68473.0,68472.0,0.9158488]
[1722106991295,0.292039,68484.0,68472.0,0.9158488]
[1722106991530,0.19366785,68483.0,68472.0,0.9158488]
[1722106991750,0.2,68516.0,68472.0,0.9158488]
[1722106991751,0.292002,68493.0,68475.0,0.146037]
[1722106991976,0.38577179,68507.0,68476.0,0.00292026]
[1722106991977,0.05162582,68492.0,68476.0,0.00292026]
[1722106992231,0.05162582,68492.0,68473.0,0.1414]
[1722106992232,0.291981,68498.0,68477.0,0.12770691]
[1722106992448,0.0606,68514.0,68478.0,0.023]
[1722106992681,0.05186699,68507.0,68489.0,0.146007]
[1722106992904,0.145975,68505.0,68490.0,0.0146007]
[1722106993123,0.20016213,68504.0,68490.0,0.0146007]
[1722106993351,0.20016213,68504.0,68486.0,0.146014]
[1722106993352,0.27029192,68503.0,68477.0,0.12770691]
[1722106993582,0.07512979,68496.0,68477.0,0.12770691]
[1722106993827,0.292027,68487.0,68472.0,0.9158488]
[1722106994076,0.146034,68477.0,68472.0,0.9158488]
[1722106994278,0.0015542,68476.0,68473.0,0.1414]
[1722106994476,0.0015542,68476.0,68474.0,0.10572488]
[1722106994698,0.0015542,68476.0,68473.0,0.1414]
[1722106994699,0.292081,68474.0,68473.0,0.1414]
[1722106994900,0.730212,68473.0,68472.0,0.83258982]
[1722106995056,0.58161893,68473.0,68472.0,0.83258982]
[1722106995310,1.16578893,68473.0,68472.0,0.83258982]
[1722106995438,0.87370393,68473.0,68472.0,0.83258982]
[1722106995639,0.87063296,68473.0,68472.0,0.83258982]
[1722106995846,0.88597027,68473.0,68472.0,0.83258982]
[1722106996068,1.17805527,68473.0,68472.0,0.83258982]
[1722106996268,1.26073734,68473.0,68472.0,0.83258982]
[1722106996474,1.32133734,68473.0,68472.0,0.83258982]
[1722106997955,0.96865234,68473.0,68472.0,0.83258982]
[1722106998160,0.14042096,68473.0,68472.0,0.83258982]
[1722106998369,0.146042,68473.0,68472.0,0.83258982]
[1722106998597,0.292067,68478.0,68472.0,0.83258982]
[1722106998798,0.28800916,68477.0,68472.0,0.83258982]
[1722106999007,0.146039,68475.0,68472.0,0.83258982]
[1722106999240,0.14197516,68474.0,68472.0,0.83258982]
[1722106999444,0.14175051,68473.0,68472.0,0.83258982]
[1722106999646,0.14175051,68479.0,68472.0,0.83258982]
[1722106999926,0.14175051,68478.0,68472.0,0.83258982]
[1722107000084,0.14175051,68478.0,68473.0,0.08325898]
[1722107000287,0.292013,68490.0,68473.0,0.08325898]
[1722107000288,0.14214945,68477.0,68473.0,0.08325898]
[1722107000487,0.29203,68486.0,68473.0,0.08325898]
[1722107000488,0.14214945,68476.0,68473.0,0.08325898]
[1722107000689,0.14214945,68475.0,68473.0,0.08325898]
[1722107000935,0.14214945,68474.0,68472.0,0.83258982]
[1722107001117,0.14368597,68473.0,68472.0,0.83258982]
[1722107001329,0.14214945,68478.0,68472.0,0.9158488]
[1722107001546,0.438127,68473.0,68472.0,0.83258982]
[1722107001765,0.92267543,68473.0,68472.0,0.83258982]
[1722107001976,1.21476043,68473.0,68472.0,0.83258982]
[1722107002187,1.60464808,68473.0,68472.0,0.83258982]
[1722107002624,2.05733308,68473.0,68472.0,0.83351382]
[1722107002837,1.76524808,68473.0,68472.0,0.83351382]
[1722107003053,2.05733308,68473.0,68472.0,0.68746882]
[1722107003262,1.76524808,68473.0,68472.0,0.68746882]
[1722107003486,1.47471728,68473.0,68472.0,0.68746882]
[1722107003717,0.93952089,68473.0,68472.0,0.68746882]
[1722107003939,0.93796669,68473.0,68472.0,0.68746882]
[1722107004168,1.23005169,68473.0,68472.0,0.68746882]
[1722107004377,1.30618645,68473.0,68472.0,0.68746882]
[1722107004598,1.37156602,68473.0,68472.0,0.68746882]
[1722107004817,1.67885237,68473.0,68472.0,0.68746882]
[1722107005032,1.01299318,68473.0,68472.0,0.68746882]
[1722107005232,0.72090818,68473.0,68472.0,0.68746882]
[1722107005667,0.28278118,68473.0,68472.0,0.68746882]
[1722107005871,0.26757983,68473.0,68472.0,0.68746882]
[1722107006747,0.26472976,68473.0,68472.0,0.68746882]
[1722107006944,0.2646575,68473.0,68472.0,0.68746882]
[1722107007182,0.12543038,68473.0,68472.0,0.68746882]
[1722107007399,0.36164331,68480.0,68472.0,0.68746882]
[1722107007620,0.26541473,68479.0,68472.0,0.68746882]
[1722107007831,0.146042,68473.0,68472.0,0.68746882]
[1722107008046,0.99562673,68473.0,68472.0,0.68746882]
[1722107008244,1.01087959,68473.0,68472.0,0.68746882]
[1722107008452,1.38527039,68473.0,68472.0,0.68746882]
[1722107008659,1.56457039,68473.0,68472.0,0.68746882]
[1722107009567,1.54587039,68473.0,68472.0,0.68746882]
[1722107009986,1.63173495,68473.0,68472.0,0.68746882]
[1722107010218,1.54587039,68473.0,68472.0,0.68746882]
[1722107010432,1.41376517,68473.0,68472.0,0.68746882]
[1722107010666,1.54517841,68473.0,68472.0,0.68746882]
[1722107011058,1.23789251,68473.0,68472.0,0.68746882]
[1722107011441,1.15689698,68473.0,68472.0,0.68746882]
[1722107011608,1.01057697,68473.0,68472.0,0.68746882]
[1722107011814,1.30266197,68473.0,68472.0,0.68746882]
[1722107012014,1.01057697,68473.0,68472.0,0.68746882]
[1722107012379,0.71849197,68473.0,68472.0,0.68746882]
[1722107012549,1.05351604,68473.0,68472.0,0.68746882]
[1722107012783,1.38428509,68473.0,68472.0,0.68746882]
[1722107013433,1.25311892,68473.0,68472.0,0.68746882]
[1722107013651,1.18273443,68473.0,68472.0,0.68746882]
[1722107013857,1.46842528,68473.0,68472.0,0.68746882]
[1722107014072,1.10552908,68473.0,68472.0,0.68746882]
[1722107014245,1.39761408,68473.0,68472.0,0.68746882]
[1722107014885,1.10552908,68473.0,68472.0,0.68746882]
[1722107015920,1.52018123,68473.0,68472.0,0.68746882]
[1722107016158,1.41284307,68473.0,68472.0,0.68746882]
[1722107016575,1.49828023,68473.0,68472.0,0.68746882]
[1722107016791,1.80629298,68473.0,68472.0,0.28152382]
[1722107017036,2.30126498,68473.0,68472.0,0.28152382]
[1722107017248,2.30126498,68473.0,68472.0,0.13547882]
[1722107017449,2.593414,68473.0,68472.0,0.13547882]
[1722107017674,2.61629909,68473.0,68472.0,0.13547882]
[1722107017878,2.32421409,68473.0,68472.0,0.1014847]
[1722107018088,2.61629909,68473.0,68472.0,7e-07]
[1722107018296,3.14432709,68473.0,68472.0,7e-07]
[1722107018703,2.121442,68473.0,68472.0,7e-07]
[1722107018920,3.12395881,68473.0,68472.0,7e-07]
[1722107019531,3.23738361,68473.0,68472.0,7e-07]
[1722107019746,3.12398258,68473.0,68472.0,7e-07]
[1722107019959,2.87035737,68473.0,68472.0,7e-07]
[1722107020164,2.80889758,68473.0,68472.0,7e-07]
[1722107020354,1.91606457,68473.0,68472.0,7e-07]
[1722107020493,1.70889758,68473.0,68472.0,7e-07]
[1722107020895,1.7946361,68473.0,68472.0,7e-07]
[1722107021094,1.70889758,68473.0,68472.0,7e-07]
[1722107021293,1.79463659,68473.0,68472.0,7e-07]
[1722107021728,1.12392758,68473.0,68472.0,7e-07]
[1722107021930,1.08305173,68473.0,68472.0,7e-07]
[1722107022187,1.33225816,68473.0,68472.0,7e-07]
[1722107022571,1.2682183,68473.0,68472.0,7e-07]
[1722107022773,1.31725527,68473.0,68472.0,7e-07]